Cogmind - Beta 13 @@@ ROGUE MODE // 2024.03.09 @ 22:04:48 Player: SX_7 Result: Destroyed by SZ-RC9(R) with Subdweller Laser Performance ------------- Evolutions (0) 0 Regions Visited (2) 400 Robots Destroyed (34) 170 Value Destroyed (799) 799 Prototype IDs (17) 340 Alien Tech Used (0) 0 Bonus (0) 0 TOTAL SCORE: 1709 Bonus ------- None Cogmind --------- Core Integrity 0/250 Matter 72/300 Energy 200/200 System Corruption 0% Temperature Cool (6) Movement Rolling (110) Location -10/Subcaves Parts ------- > --- POWER (1+3) ------ Subdweller Power Source > --- PROPULSION (2) --- Subdweller Monowheel Subdweller Monowheel > --- UTILITY (2) ------ Small Storage Unit Power Bank > --- WEAPON (2) ------- Beam Cannon Light Cannon > --- INVENTORY (8) ---- Light Ion Engine Seismic Detector Assault Rifle Assault Rifle Peak State ------------ > --- POWER ------------ Subdweller Power Source > --- PROPULSION ------- Subdweller Monowheel Subdweller Monowheel > --- UTILITY ---------- Small Storage Unit Power Bank > --- WEAPON ----------- Light Cannon Light Cannon > --- INVENTORY -------- Light Ion Engine Seismic Detector Beam Cannon Assault Rifle Assault Rifle [Rating: 18] Favorites ----------- Power Ion Engine Engine Ion Engine Power Core Light Nuclear Core Propulsion Light Treads Treads Light Treads Wheel Subdweller Monowheel Utility Small Storage Unit Device Seismic Detector Storage Small Storage Unit Protection Light Armor Plating Weapon Assault Rifle Energy Cannon Beam Cannon Ballistic Gun Assault Rifle Ballistic Cannon Light Cannon Launcher Grenade Launcher Special Weapon Flamer Build | -11 -10 -10 ------- Run | Yrd Mat Sub Slots Evolved . | . . . Power . | . . . Propulsion . | . . . Utility . | . . . Weapon . | . . . Parts Attached 37 | 7 8 22 Power 4 | 1 1 2 Engine 3 | 1 1 1 Core 1 | . . 1 Reactor . | . . . Propulsion 7 | 2 1 4 Treads 5 | 2 1 2 Leg . | . . . Wheel 2 | . . 2 Hover . | . . . Flight . | . . . Utility 7 | 2 . 5 Device 3 | 1 . 2 Storage 1 | 1 . . Processor . | . . . Hackware . | . . . Protection 3 | . . 3 Artifact . | . . . Weapon 19 | 2 6 11 Energy Gun . | . . . Energy Cannon 2 | . . 2 Ballistic Gun 8 | 2 4 2 Ballistic Cannon 4 | . . 4 Launcher 4 | . 2 2 Special Weapon 1 | . . 1 Impact Weapon . | . . . Slashing Weapon . | . . . Piercing Weapon . | . . . Special Melee Weapon . | . . . Unidentified Prototypes . | . . . Parts Lost 11 | . . 11 Power 2 | . . 2 Propulsion 4 | . . 4 Utility 2 | . . 2 Weapon 3 | . . 3 Highest Loss Streak 4 | . . 4 To Critical Strikes . | . . . Average Slot Usage (%) 92 | . 97 86 Engine 11 | . 14 9 Core 1 | . . 3 Treads 21 | . 25 16 Wheel 1 | . . 3 Device 9 | . 14 4 Storage 13 | . 14 13 Protection 3 | . . 7 Energy Cannon 4 | . . 8 Ballistic Gun 16 | . 27 5 Ballistic Cannon 5 | . . 11 Naked Turns . | . . . Heaviest Build 19 | 15 16 19 Greatest Support 40 | 40 40 40 Greatest Overweight (x) 3 | 1 . 3 Average Overweight (x) . | . . . Largest Inventory Capacity 8 | 8 8 8 Average Capacity 7 | 7 8 8 Most Carried 8 | 7 8 8 Average Carried 7 | 4 7 6 Final Capacity 8 | 8 8 8 Final Carried 8 | 6 8 4 Class Distribution -------------------- 97% | Mutant Dominant Class ---------------- Mutant | -10/Materials Mutant | -10/Subcaves Resources | -11 -10 -10 ----------- Run | Yrd Mat Sub Matter Collected 1024 | 211 315 498 Remotely . | . . . Salvage Created 882 | 10 377 495 Parts 86 | 5 35 46 Haulers Intercepted 1 | . 1 . Recyclers Shooed . | . . . Parts Field Recycled . | . . . Retrieved Matter . | . . . Parts Self-Destructed 15 | . . 15 Prevented . | . . . Kills | -11 -10 -10 ------- Run | Yrd Mat Sub Combat Hostiles Destroyed 25 | . 10 15 Guns 12 | . 7 5 Cannons 6 | . . 6 AOE 7 | . 3 4 Classes Destroyed 9 | 1 5 3 Worker 3 | . 3 . Tunneler 1 | 1 . . Hauler 1 | . 1 . Turret 2 | . . 2 Watcher 2 | . 2 . Swarmer 10 | . 6 4 Grunt 6 | . 4 2 Sentry 1 | . . 1 Subdweller 8 | . . 8 Best Kill Streak 9 | 1 9 4 Combat Bots Only 6 | . 6 4 Max Kills in Single Turn 2 | 1 2 2 Gunslinging . | . . . Exploded 2 | . 2 2 Melee . | . . . Uniques/NPCs Destroyed . | . . . Combat | -11 -10 -10 -------- Run | Yrd Mat Sub Hostile Shots Fired 190 | . 31 159 Missed 57 | . 6 51 Damage Taken 1640 | . 263 1377 Core 250 | . 24 226 Absorbed by Shields . | . . . Core Remaining (%) 100 | 100 . . Volleys Fired 124 | 1 36 87 Largest 2 | 2 2 2 Hottest 160 | 40 40 160 Shots Fired 237 | 2 69 166 Gun 118 | 2 66 50 Cannon 101 | . . 101 Launcher 11 | . 3 8 Special 7 | . . 7 Kinetic 192 | 2 66 124 Thermal 34 | . . 34 Explosive 11 | . 3 8 Electromagnetic . | . . . Robot Hit Streak 44 | 1 9 44 Robot Miss Streak 5 | . 4 5 Penetration Max . | . . . Secondary Targets 1 | . 1 . Max Gunslinging Chain 1 | . 1 . Shots Hit Robots 124 | 1 40 83 Core Hits 55 | 1 22 32 Critical Kills . | . . . Critical Parts Destroyed . | . . . Critical Strikes 3 | . . 3 Blast 3 | . . 3 Melee Attacks . | . . . Impact . | . . . Slashing . | . . . Piercing . | . . . Sneak Attacks . | . . . Combat Hostiles . | . . . Follow-up Attacks . | . . . Damage Inflicted 2312 | 11 754 1547 Guns 779 | 11 471 297 Cannons 849 | . . 849 Explosions 601 | . 267 334 Melee . | . . . Ramming 16 | . 16 . Kinetic 1160 | 11 471 678 Thermal 535 | . . 535 Explosive 601 | . 267 334 Electromagnetic . | . . . Impact . | . . . Slashing . | . . . Piercing . | . . . Highest Corruption . | . . . Average Corruption . | . . . Corruption Purged . | . . . Corruption Blocked . | . . . Overload Shots . | . . . Overflow Damage 51 | . 23 28 Projectiles 1 | . . 1 Explosions 50 | . 23 27 Melee . | . . . Knockbacks 10 | . . 10 Impact . | . . . Kinetic 9 | . . 9 Secondary 1 | . . 1 Self-Inflicted Damage 44 | . . 44 Shots 2 | . . 2 Rammed 5 | . 5 . Targets Rammed 5 | . 5 . Kicked . | . . . Crushed . | . . . Highest Temperature 63 | . 9 63 Average Temperature 23 | . 4 29 Received Heat Transfer 642 | . 99 543 Siege Activations . | . . . Robots Corrupted . | . . . Combat Hostiles . | . . . Parts Fried . | . . . Impact Corruptions . | . . . Robots Melted . | . . . Combat Hostiles . | . . . Parts Melted 2 | . . 2 Heat Transferred 1479 | . . 1479 Parts Sabotaged . | . . . Parts Stolen . | . . . Parts Stripped . | . . . Power Chain Reactions . | . . . Alert | -11 -10 -10 ------- Run | Yrd Mat Sub Peak Influence 212 | 5 212 . Initial 3 | . 3 . Average 29 | 2 31 . Maximum Alert Level 1 | . 1 . Low Security (%) 94 | 100 94 . Level 1 5 | . 5 . Level 2 . | . . . Level 3 . | . . . Level 4 . | . . . Level 5 . | . . . High Security . | . . . Max Security . | . . . Squads Dispatched 1 | . 1 . Investigation . | . . . Extermination . | . . . Reinforcement 1 | . 1 . Assault . | . . . Garrison . | . . . Intercept . | . . . Searches Triggered . | . . . Construction Impeded . | . . . Haulers Reinforced . | . . . Active Scanning Responses . | . . . Cargo Convoy Interrupts . | . . . Stealth | -11 -10 -10 --------- Run | Yrd Mat Sub Distress Signals 2 | . 2 . Communications Jammed . | . . . Distress Signals . | . . . Times Spotted 77 | . 17 60 Peak Tracking Total 5 | . 5 4 Tactical Retreats 5 | . . 5 Traps | -11 -10 -10 ------- Run | Yrd Mat Sub Traps Triggered 1 | . 1 . Indirectly . | . . . Trap Hack Attempts . | . . . Triggered . | . . . Disarmed . | . . . Reprogrammed . | . . . Reused . | . . . Traps Extracted . | . . . Installed . | . . . Triggered . | . . . Machines | -11 -10 -10 ---------- Run | Yrd Mat Sub Machines Disabled 5 | . 1 4 Max in Single Turn 2 | . 1 2 Machines Repaired . | . . . Machines Dismantled . | . . . Machines Sabotaged . | . . . Overloaded Fab Kills . | . . . Hacking | -11 -10 -10 --------- Run | Yrd Mat Sub Machines Accessed 10 | . 8 2 Terminals 7 | . 7 . Fabricators . | . . . Repair Stations . | . . . Recycling Units 1 | . 1 . Scanalyzers . | . . . Garrison Access . | . . . Total Hacks 37 | . 25 12 Successful 26 | . 14 12 Failed 11 | . 11 . Catastrophic 1 | . 1 . Database Lockouts . | . . . Manual 22 | . 22 . Terminals 21 | . 21 . Fabricators . | . . . Repair Stations . | . . . Recycling Units 4 | . 4 . Scanalyzers . | . . . Garrison Access . | . . . Terminal Hacks 22 | . 10 12 Record 11 | . . 11 Prototype ID Bank 4 | . 4 . Locate Traps 6 | . 6 . Derelict Proto ID Bank 1 | . . 1 Fabricator Hacks . | . . . Repair Station Hacks . | . . . Recycling Unit Hacks . | . . . Scanalyzer . | . . . Garrison Access Hacks . | . . . Unauthorized Hacks 4 | . 4 . Terminals 3 | . 3 . Botnet 3 | . 3 . Fabricators . | . . . Repair Stations . | . . . Recycling Units 1 | . 1 . Reject 1 | . 1 . Scanalyzers . | . . . Garrison Access . | . . . Data Cores Recovered . | . . . Used . | . . . Hacking Detections 8 | . 8 . Full Trace Events . | . . . Feedback Events . | . . . Feedback Blocked . | . . . Robot Schematics Acquired . | . . . Robots Built . | . . . Authchips . | . . . Time . | . . . Total Robot Build Rating . | . . . Part Schematics Acquired . | . . . Parts Built . | . . . Authchips . | . . . Time . | . . . Total Part Build Rating . | . . . Parts Repaired . | . . . Time . | . . . Parts Recycled . | . . . Recycled Matter . | . . . Retrieved Matter . | . . . Retrieved Components . | . . . Parts Scanalyzed . | . . . Part Schematics Acquired . | . . . Parts Damaged . | . . . Bothacking | -11 -10 -10 ------------ Run | Yrd Mat Sub Used RIF Installer . | . . . Robots Hacked . | . . . Non-combat . | . . . Combat . | . . . Robot Hacks Applied . | . . . Relay Couplers Released . | . . . Fabnet Peak Effective % . | . . . Robots Rewired . | . . . Allies Hacked . | . . . Hacks Repelled . | . . . Allies | -11 -10 -10 -------- Run | Yrd Mat Sub Total Allies . | . . . Largest Group . | . . . Highest-Rated Group . | . . . Highest-Rated Ally . | . . . Total Orders . | . . . Ally Attacks . | . . . Total Damage . | . . . Kills . | . . . Allies Corrupted . | . . . Allies Melted . | . . . Intel | -11 -10 -10 ------- Run | Yrd Mat Sub Robot Analysis Total . | . . . Derelict Logs Recovered 1 | . . 1 Drone Launches . | . . . Drone Recoveries . | . . . Exploration | -11 -10 -10 ------------- Run | Yrd Mat Sub Turns Passed 5135 | 114 2535 2486 Spaces Moved 2250 | 67 776 1407 Core 87 | 20 . 67 Treads 1875 | 47 776 1052 Legs . | . . . Wheels 288 | . . 288 Hover . | . . . Flight . | . . . Fastest Speed 50 | 50 160 110 Average Speed 154 | 136 160 151 Slowest Speed 200 | 160 160 200 Overloaded Moves . | . . . Propulsion Burnouts . | . . . Robots Hopped . | . . . Cave-ins Triggered . | . . . Exploration Rate (%) 55 | 5 99 62 Regions Visited 2 Branch Regions 1 Pre-discovered Areas 1 | . . 1 Known Exits Taken . | . . . Unknown Exits Taken 2 | 1 1 . Scrap Searched 9 | . . 9 Spaces Dug . | . . . Terrain Destroyed 49 | . 14 35 Melee . | . . . Projectile . | . . . AOE 49 | . 14 35 Terrain Rammed . | . . . Walls Destroyed . | . . . Machines Disabled . | . . . Actions | -11 -10 -10 --------- Run | Yrd Mat Sub Total 3670 | 87 2002 1581 Wait 1217 | . 1158 59 Move 2248 | 66 775 1407 Hop . | . . . Pick Up 28 | 13 12 3 Fast Attach 7 | . . 7 Attach 15 | 7 3 5 Detach . | . . . Swap 15 | . 5 10 Drop 11 | . 8 3 Fire 124 | 1 36 87 Melee . | . . . Ram . | . . . Kick . | . . . Crush 5 | . 5 . Escape Stasis . | . . . Rewire . | . . . Trap . | . . . Miscellaneous . | . . . Route ------- -11/Scrapyard -10/Materials (discovered 6 exits: [*Mat x3] / [*Min x2] / *Sub) -10/Subcaves (discovered 2 exits: [*Mat] / [*Rec]) History --------- Turn | Location | Event 52 | -11/Scrapyard | Discovered new exit (range 15) 115 | -11/Scrapyard | Entered Materials 288 | -10/Materials | Discovered new exit (range 13) 306 | -10/Materials | Build established: Mutant 320 | -10/Materials | Discovered new exit (range 8) 410 | -10/Materials | Discovered new exit (range 16) 476 | -10/Materials | Discovered new exit (range 16) 600 | -10/Materials | Discovered new exit (range 15) 2638 | -10/Materials | Discovered new exit (range 9) 2650 | -10/Materials | Entered Subcaves 2654 | -10/Subcaves | Learned 2 Materials zone layouts 2953 | -10/Subcaves | Shifting Twisted Machinery released Sub. Monowheel 2978 | -10/Subcaves | Shifting Twisted Machinery released Mak. Axe 2990 | -10/Subcaves | Shifting Twisted Machinery released Mak. Light Armor Plating 3102 | -10/Subcaves | Learned location of Zion (-6) 3102 | -10/Subcaves | Met a Zionite searching for "candidates" 3145 | -10/Subcaves | Discovered new exit (range 12) 3364 | -10/Subcaves | Ambushed by Subdwellers from Twisted Machinery 3456 | -10/Subcaves | Lost 3 parts (2n1w) 3500 | -10/Subcaves | Shifting Twisted Machinery released Sub. Optics 3502 | -10/Subcaves | Shifting Twisted Machinery released Battle Cannon 3965 | -10/Subcaves | Disturbed a concealed Subdweller 4196 | -10/Subcaves | Core integrity fell below 50% 4346 | -10/Subcaves | Visited Clippyterm 4351 | -10/Subcaves | Learned Factory stockpile data 4562 | -10/Subcaves | Discovered new exit (range 12) 4615 | -10/Subcaves | Lost 4 parts (1p1n1u1w) 4858 | -10/Subcaves | Visited 4L-MR0's lab 4927 | -10/Subcaves | Found Power Bank 4929 | -10/Subcaves | Attached Power Bank, gained temporary slots: Power x3 5018 | -10/Subcaves | A swath of the cavern ceiling suddenly collapsed 5124 | -10/Subcaves | Core integrity fell below 20% 5136 | -10/Subcaves | Destroyed by SZ-RC9(R) with Subdweller Laser Last Messages --------------- whatever they would've done with it. If we're lucky even some of the others got blasted, too. 04875_ 4L-MR0 mumbles: "I'm surprised some of them are even willing to come in here given their fear of my usual visitors." 04880_ 4L-MR0 mumbles: "Who knows where that last prototype ended up, probably tossed aside somewhere as if it were useless junk..." 04922_ Testing Chamber breached. 04927_ Acquired Power Bank. 04929_ Core temporarily expanded with Power slot. A swath of the cavern ceiling suddenly collapses. 05118_ CQ-2JZ(R) knocked back. 05121_ SZ-RC9(R) Disposable Heat Sink blasted off. 05124_ SZ-RC9(R) knocked back. 05127_ CQ-2JZ(R) knocked back. 05129_ Lgt. Cannon destroyed. 05131_ CQ-2JZ(R) Sub. Monowheel blasted off. 05131_ CQ-2JZ(R) destroyed. 05135_ SZ-RC9(R) affixes Scrap Shield Fragment to Scrap Shield. Map ----- +----------------------------------------------------+ | ?????????????????????????????????????????????????? | | ?????????????????????????????????????????????????? | | ?????????????????????????????????????????????????? | | ?????????????????????????????????????????????????? | | ?????????????????????????????????????????????????? | | ?????????????????????????? ???????????????????? | | ?????????????????????????? ???????????????????? | | ?????????????????????????? ????????????????????? | | ??????????????####???????? ##???????????????????? | | ?????????###### #???????? #???????????????????? | | ?????????# #????##?? #???????????????????? | | ?????????# ##### ### #???????????????????? | | ?????????# ## #???????????????????? | | ?????????## ### #?????? #???????????? | | ??????????# ## #????? #???????????? | | ??????????# ## ### #???? #???????????? | | ??????????##?# ### #??? #????????????? | | ???????????##### ### #?????????????? | | ########??## ## #?????????????? | | # # # #??# # #??????????????? | | #?## &#???????????????????? | | ### %R%#???????????????????? | | ### ## ###*%=#???????????????????? | | ###?# # ####!!%#???????????????????? | | ????# ### ##???????????????????? | | ????# # @ #????????????????????? | | ##### ### ##????????????????????? | | " ### ## #?#####?????????????????????? | | "" ]"### ### ##??????????????????????????? | | ## ] "## ## #??????????????????????????? | | ## "## #??????????????????????????? | | ##"[ "# #??????????????????????????? | | #### ## ## ##??????????????????????????? | | #?# #" #?###???????????????????????????? | | #?# #???????????????????????????????? | | #?# ####???????????????????????????????? | | ### # " ##?????????????????????????????????? | | ##" ###" #?????????????????????????????????? | | ## ="## ##?????????????????????????????????? | | ##[""### ##??????????????????????????????????? | | " "###?# #??? #??????????????????????????????? | | ####???## ## #??????????????????????????????? | | ????##### #??????????????????????????????? | | ???## ##??????????????????????????????? | | ?### ###???????????????????????????????? | | ?# ## ##?????????????????????????????????? | | ## # ###?##??????????????????????????????????? | | # # #?????????????????????????????????????? | | # ## ##?????????????????????????????????????? | | ## ## #??????????????????????????????????????? | +----------------------------------------------------+ Best States ------------- Heat Dissipation 25 Energy Generation 15 Energy Capacity 250 Matter Stores 300 Matter Capacity 300 Sight Range 16 Terrain Scan Density 10 Armor Coverage 150 Evasion (%) 40 Recoil Reduction 2 Item Schematics ----------------- None Robot Schematics ------------------ None Fabricated ------------ Nothing Alien Tech Used ----------------- None Achievements -------------- None Challenges ------------ None Game ------ Seed BlastClaymoresThruster Manual? 0 Play Time 00:39:00 Cumulative 23.5 hours Start 2024.03.09 @ 20:25:50 End 2024.03.09 @ 22:04:48 Sessions 5 Manual Loads 0 Difficulty Rogue Special Mode None Game No. 28 Rogue 27 Adventurer 1 Explorer 0 Win Type - Total 1 Types 1/0/0/0/0/0/0/0/0 Lore% 23 Gallery% 22 Achievement% 23 Wizard Run 0 Options --------- Layout 0 ASCII 0 Keyboard 0 Movement Arrows Keybinds 0 Fullscreen 1 Font 20/X11 Map View 66x50 Zoom Use 0% Tactical HUD 1 Map Filters NONE Filters SHIFT_HUE(10)|LOW_CONTRAST(6,12,16) Steam 1 RUN: 6cde27f8-6a06-413c-aded-3e104579068c